[Event "*** Titled Tuesday Blitz"]
[Site "Chess.com"]
[Date "2021.04.06"]
[Round "1"]
[White "Rud_Makarian"]
[Black "Nara_Kh"]
[Result "1-0"]
[WhiteElo "2878"]
[BlackElo "2450"]
[TimeControl "180+1"]
[EndTime "10:07:20 PDT"]
[Termination "Rud_Makarian won by resignation"]

1. d4 {[%clk 0:01:51]} 1... d5 {[%clk 0:02:56.7]} 2. c4 {[%clk 0:01:47.2]} 2...
c6 {[%clk 0:02:56.8]} 3. Nf3 {[%clk 0:01:47.8]} 3... Nf6 {[%clk 0:02:56.3]} 4.
e3 {[%clk 0:01:47.6]} 4... Bf5 {[%clk 0:02:55.7]} 5. Nc3 {[%clk 0:01:47.3]} 5...
a6 {[%clk 0:02:55.9]} 6. Qb3 {[%clk 0:01:43.3]} 6... Ra7 {[%clk 0:02:54.5]} 7.
cxd5 {[%clk 0:01:43.4]} 7... cxd5 {[%clk 0:02:54.6]} 8. Bd2 {[%clk 0:01:44.1]}
8... Nc6 {[%clk 0:02:53.4]} 9. Rc1 {[%clk 0:01:40.6]} 9... e6 {[%clk 0:02:51.4]}
10. Na4 {[%clk 0:01:41]} 10... Bd6 {[%clk 0:02:30.3]} 11. Be2 {[%clk 0:01:26.4]}
11... O-O {[%clk 0:02:28.8]} 12. O-O {[%clk 0:01:27]} 12... Qe7 {[%clk
0:02:21.8]} 13. Nc5 {[%clk 0:01:21.6]} 13... Rb8 {[%clk 0:02:12.6]} 14. Rfd1
{[%clk 0:01:18.3]} 14... e5 {[%clk 0:02:06.4]} 15. dxe5 {[%clk 0:01:13.8]} 15...
Nxe5 {[%clk 0:02:05.8]} 16. Nd4 {[%clk 0:01:09.1]} 16... Bg4 {[%clk 0:01:58.9]}
17. Qb6 {[%clk 0:01:01.9]} 17... Bxe2 {[%clk 0:01:48.7]} 18. Nxe2 {[%clk
0:01:01.1]} 18... Raa8 {[%clk 0:01:48.8]} 19. Ng3 {[%clk 0:00:55.7]} 19... g6
{[%clk 0:01:45.3]} 20. Bb4 {[%clk 0:00:40.7]} 20... Rd8 {[%clk 0:01:15.1]} 21.
Ba3 {[%clk 0:00:39]} 21... Rab8 {[%clk 0:01:12.4]} 22. b3 {[%clk 0:00:32.4]}
22... Bc7 {[%clk 0:01:00.1]} 23. Nxa6 {[%clk 0:00:21.9]} 23... Qxa3 {[%clk
0:00:53.8]} 24. Nxc7 {[%clk 0:00:21.5]} 24... Ned7 {[%clk 0:00:50.1]} 25. Qd4
{[%clk 0:00:19.2]} 25... Qxa2 {[%clk 0:00:49.5]} 26. Nxd5 {[%clk 0:00:19.3]}
26... Nxd5 {[%clk 0:00:46.7]} 27. Qxd5 {[%clk 0:00:20.2]} 27... Nf6 {[%clk
0:00:42.2]} 28. Qe5 {[%clk 0:00:20.6]} 28... Qa6 {[%clk 0:00:25.6]} 29. h3
{[%clk 0:00:19.6]} 29... Re8 {[%clk 0:00:25.3]} 30. Qb2 {[%clk 0:00:19.3]} 30...
Qe6 {[%clk 0:00:24.5]} 31. Rc4 {[%clk 0:00:18.9]} 31... h5 {[%clk 0:00:24.2]}
32. Rcd4 {[%clk 0:00:19]} 32... Kh7 {[%clk 0:00:23.8]} 33. Rd6 {[%clk
0:00:18.9]} 33... Rbd8 {[%clk 0:00:15.5]} 34. Rxd8 {[%clk 0:00:17.7]} 34... Rxd8
{[%clk 0:00:13.5]} 35. Rxd8 {[%clk 0:00:18.6]} 35... h4 {[%clk 0:00:11.8]} 36.
Ne4 {[%clk 0:00:15.7]} 36... Qxe4 {[%clk 0:00:05.8]} 37. Qxf6 {[%clk 0:00:15.9]}
37... Qb1+ {[%clk 0:00:06.2]} 38. Kh2 {[%clk 0:00:16]} 1-0

[Event "*** Titled Tuesday Blitz"]
[Site "Chess.com"]
[Date "2021.04.06"]
[Round "1"]
[White "Vugar_Manafov"]
[Black "Rytenko_V"]
[Result "1-0"]
[WhiteElo "2685"]
[BlackElo "2371"]
[TimeControl "180+1"]
[EndTime "10:07:20 PDT"]
[Termination "Vugar_Manafov won by resignation"]

1. Nf3 {[%clk 0:02:59.4]} 1... d5 {[%clk 0:02:59.8]} 2. g3 {[%clk 0:02:59.1]}
2... c5 {[%clk 0:03:00.4]} 3. Bg2 {[%clk 0:02:59.1]} 3... e6 {[%clk 0:03:01]} 4.
O-O {[%clk 0:02:59.7]} 4... Nf6 {[%clk 0:03:01.6]} 5. d3 {[%clk 0:02:59.9]} 5...
Be7 {[%clk 0:03:01.1]} 6. Nc3 {[%clk 0:03:00.3]} 6... O-O {[%clk 0:03:01.2]} 7.
e4 {[%clk 0:03:00.3]} 7... dxe4 {[%clk 0:02:58.7]} 8. dxe4 {[%clk 0:02:59.9]}
8... Qxd1 {[%clk 0:02:56.8]} 9. Rxd1 {[%clk 0:02:59]} 9... Nc6 {[%clk
0:02:57.7]} 10. h3 {[%clk 0:02:56.9]} 10... e5 {[%clk 0:02:49.7]} 11. Bg5 {[%clk
0:02:38.6]} 11... Be6 {[%clk 0:02:40.7]} 12. Nd5 {[%clk 0:02:34.7]} 12... Bd8
{[%clk 0:02:11.7]} 13. Bxf6 {[%clk 0:02:24.2]} 13... gxf6 {[%clk 0:02:08.3]} 14.
Nh4 {[%clk 0:02:16.7]} 14... Kg7 {[%clk 0:01:57]} 15. Rd2 {[%clk 0:01:39.6]}
15... Ba5 {[%clk 0:01:55.7]} 16. c3 {[%clk 0:01:38]} 16... Rad8 {[%clk
0:01:53.9]} 17. Rad1 {[%clk 0:01:38.5]} 17... Rd6 {[%clk 0:01:39.1]} 18. Bf3
{[%clk 0:01:20.6]} 18... Rfd8 {[%clk 0:01:31.9]} 19. Bg4 {[%clk 0:01:14.2]}
19... Ne7 {[%clk 0:01:08.5]} 20. Nf5+ {[%clk 0:00:48.3]} 20... Nxf5 {[%clk
0:00:55.6]} 21. Bxf5 {[%clk 0:00:49.2]} 21... Bxf5 {[%clk 0:00:38]} 22. exf5
{[%clk 0:00:50.1]} 22... c4 {[%clk 0:00:37.8]} 23. Kf1 {[%clk 0:00:47.4]} 23...
b5 {[%clk 0:00:38]} 24. Ke2 {[%clk 0:00:47.4]} 24... h5 {[%clk 0:00:36.7]} 25.
Ne3 {[%clk 0:00:38.7]} 25... Rxd2+ {[%clk 0:00:35.3]} 26. Rxd2 {[%clk
0:00:39.6]} 26... Rxd2+ {[%clk 0:00:35.3]} 27. Kxd2 {[%clk 0:00:40.5]} 27... Bb6
{[%clk 0:00:31.1]} 28. Ke2 {[%clk 0:00:40.9]} 28... Bxe3 {[%clk 0:00:14.6]} 29.
Kxe3 {[%clk 0:00:41.8]} 29... Kf8 {[%clk 0:00:15.3]} 30. Ke4 {[%clk 0:00:41.9]}
30... Ke7 {[%clk 0:00:15.6]} 31. Kd5 {[%clk 0:00:42.3]} 31... Kd7 {[%clk
0:00:16.2]} 32. Kc5 {[%clk 0:00:42.7]} 32... a6 {[%clk 0:00:14.5]} 33. Kb6
{[%clk 0:00:42.8]} 33... e4 {[%clk 0:00:04.8]} 34. Kxa6 {[%clk 0:00:42.4]} 34...
Kc6 {[%clk 0:00:05.3]} 35. Ka5 {[%clk 0:00:35.4]} 35... Kc5 {[%clk 0:00:03.1]}
36. a3 {[%clk 0:00:35.4]} 36... Kd5 {[%clk 0:00:02.1]} 37. Kxb5 {[%clk
0:00:35.2]} 37... h4 {[%clk 0:00:03]} 38. gxh4 {[%clk 0:00:34.2]} 38... Ke5
{[%clk 0:00:03.6]} 39. a4 {[%clk 0:00:34.4]} 39... Kf4 {[%clk 0:00:04.5]} 40. a5
{[%clk 0:00:34.9]} 40... Kf3 {[%clk 0:00:05.4]} 41. a6 {[%clk 0:00:35.6]} 41...
Kxf2 {[%clk 0:00:06.3]} 42. a7 {[%clk 0:00:36.2]} 42... e3 {[%clk 0:00:07.2]}
43. a8=Q {[%clk 0:00:37]} 43... e2 {[%clk 0:00:08.1]} 44. Qh1 {[%clk 0:00:36.9]}
44... e1=Q {[%clk 0:00:08.1]} 45. Qxe1+ {[%clk 0:00:36.7]} 45... Kxe1 {[%clk
0:00:09]} 46. h5 {[%clk 0:00:37.2]} 1-0

[Event "*** Titled Tuesday Blitz"]
[Site "Chess.com"]
[Date "2021.04.06"]
[Round "1"]
[White "azikom"]
[Black "Kotofeyca"]
[Result "1-0"]
[WhiteElo "2694"]
[BlackElo "2375"]
[TimeControl "180+1"]
[EndTime "10:07:21 PDT"]
[Termination "azikom won by resignation"]

1. d4 {[%clk 0:02:58.5]} 1... d5 {[%clk 0:02:59.5]} 2. Nf3 {[%clk 0:02:58.9]}
2... c6 {[%clk 0:03:00]} 3. Bf4 {[%clk 0:02:58.9]} 3... Bg4 {[%clk 0:02:59.4]}
4. Nbd2 {[%clk 0:02:57]} 4... Nd7 {[%clk 0:02:58.8]} 5. e3 {[%clk 0:02:57]} 5...
e6 {[%clk 0:02:58.9]} 6. h3 {[%clk 0:02:57.4]} 6... Bh5 {[%clk 0:02:58.4]} 7. c4
{[%clk 0:02:56.8]} 7... Bb4 {[%clk 0:02:50]} 8. a3 {[%clk 0:02:49.9]} 8... Bxd2+
{[%clk 0:02:45.6]} 9. Qxd2 {[%clk 0:02:49.5]} 9... Bxf3 {[%clk 0:02:45.3]} 10.
gxf3 {[%clk 0:02:49.5]} 10... Ngf6 {[%clk 0:02:44.5]} 11. Rg1 {[%clk 0:02:46.9]}
11... O-O {[%clk 0:02:42.7]} 12. O-O-O {[%clk 0:02:44]} 12... Re8 {[%clk
0:02:29.1]} 13. Kb1 {[%clk 0:02:43.1]} 13... Rc8 {[%clk 0:02:21]} 14. Bh6 {[%clk
0:02:35.4]} 14... g6 {[%clk 0:02:20]} 15. Bg5 {[%clk 0:02:29.7]} 15... Qc7
{[%clk 0:02:00.5]} 16. h4 {[%clk 0:02:24.3]} 16... dxc4 {[%clk 0:01:53.7]} 17.
Bxc4 {[%clk 0:02:23.3]} 17... c5 {[%clk 0:01:54]} 18. Rc1 {[%clk 0:02:07.7]}
18... Qb6 {[%clk 0:01:41]} 19. dxc5 {[%clk 0:01:56.9]} 19... Rxc5 {[%clk
0:01:40.9]} 20. Be2 {[%clk 0:01:53.2]} 20... Rec8 {[%clk 0:01:37.9]} 21. Rxc5
{[%clk 0:01:52.3]} 21... Qxc5 {[%clk 0:01:35.4]} 22. Rd1 {[%clk 0:01:46.5]}
22... Kg7 {[%clk 0:01:30.5]} 23. Bf4 {[%clk 0:01:15.7]} 23... Nd5 {[%clk
0:01:16.4]} 24. Bg3 {[%clk 0:01:12.7]} 24... Kg8 {[%clk 0:01:07.3]} 25. e4
{[%clk 0:01:11.7]} 25... N5f6 {[%clk 0:01:03.4]} 26. Rc1 {[%clk 0:01:06]} 26...
Qxc1+ {[%clk 0:01:02.1]} 27. Qxc1 {[%clk 0:01:06.1]} 27... Rxc1+ {[%clk
0:01:03]} 28. Kxc1 {[%clk 0:01:06.7]} 28... e5 {[%clk 0:00:56.5]} 29. Kd2 {[%clk
0:01:05.3]} 29... Kf8 {[%clk 0:00:54.8]} 30. Ke3 {[%clk 0:01:03.6]} 30... Ke7
{[%clk 0:00:47.4]} 31. f4 {[%clk 0:01:03.3]} 31... Kd6 {[%clk 0:00:40]} 32.
fxe5+ {[%clk 0:01:00.8]} 32... Nxe5 {[%clk 0:00:40.2]} 33. f4 {[%clk 0:01:00.8]}
33... Neg4+ {[%clk 0:00:40.4]} 34. Kf3 {[%clk 0:00:59.2]} 34... h5 {[%clk
0:00:18.2]} 35. e5+ {[%clk 0:00:58.6]} 35... Kd5 {[%clk 0:00:17.9]} 36. exf6
{[%clk 0:00:57.7]} 36... Nxf6 {[%clk 0:00:18.8]} 37. Bf2 {[%clk 0:00:54.7]}
37... b6 {[%clk 0:00:17.7]} 38. Bd3 {[%clk 0:00:52.5]} 38... Nd7 {[%clk
0:00:17]} 39. Be4+ {[%clk 0:00:43.3]} 39... Kd6 {[%clk 0:00:16.4]} 40. f5 {[%clk
0:00:42.6]} 40... Nf8 {[%clk 0:00:13.6]} 41. fxg6 {[%clk 0:00:41.7]} 41... fxg6
{[%clk 0:00:14.5]} 42. Kf4 {[%clk 0:00:41.3]} 42... Ke6 {[%clk 0:00:14.3]} 43.
Bc2 {[%clk 0:00:38.3]} 43... Kf6 {[%clk 0:00:14]} 44. Bd4+ {[%clk 0:00:36.6]}
44... Kf7 {[%clk 0:00:13.2]} 45. Bb3+ {[%clk 0:00:36.4]} 45... Ke7 {[%clk
0:00:13.1]} 46. Kg5 {[%clk 0:00:35.7]} 1-0

[Event "*** Titled Tuesday Blitz"]
[Site "Chess.com"]
[Date "2021.04.06"]
[Round "1"]
[White "Evgeny81"]
[Black "rynos0411"]
[Result "0-1"]
[WhiteElo "2769"]
[BlackElo "2436"]
[TimeControl "180+1"]
[EndTime "10:07:23 PDT"]
[Termination "rynos0411 won by checkmate"]

1. e4 {[%clk 0:03:00.1]} 1... c6 {[%clk 0:02:57.2]} 2. d4 {[%clk 0:02:58.6]}
2... d5 {[%clk 0:02:58.1]} 3. Nc3 {[%clk 0:02:58.9]} 3... dxe4 {[%clk
0:02:58.1]} 4. Nxe4 {[%clk 0:02:59.8]} 4... Nf6 {[%clk 0:02:58.6]} 5. Nxf6+
{[%clk 0:02:58.2]} 5... exf6 {[%clk 0:02:59.5]} 6. c3 {[%clk 0:02:53.9]} 6...
Bd6 {[%clk 0:02:58.9]} 7. Bd3 {[%clk 0:02:53.7]} 7... O-O {[%clk 0:02:57.9]} 8.
Qc2 {[%clk 0:02:53.8]} 8... Re8+ {[%clk 0:02:57.7]} 9. Ne2 {[%clk 0:02:54]} 9...
h5 {[%clk 0:02:55.3]} 10. Be3 {[%clk 0:02:50.2]} 10... Nd7 {[%clk 0:02:54.1]}
11. O-O-O {[%clk 0:02:50]} 11... Nf8 {[%clk 0:02:51.6]} 12. h3 {[%clk 0:02:43]}
12... Be6 {[%clk 0:02:48.8]} 13. g4 {[%clk 0:02:40.4]} 13... h4 {[%clk
0:02:33.7]} 14. Kb1 {[%clk 0:02:36.5]} 14... Bd5 {[%clk 0:02:28.4]} 15. Rhg1
{[%clk 0:02:29.8]} 15... Bh2 {[%clk 0:02:19.9]} 16. Rge1 {[%clk 0:02:28.6]}
16... b5 {[%clk 0:02:08.5]} 17. Nf4 {[%clk 0:02:19.2]} 17... Bf3 {[%clk
0:02:04.9]} 18. Rc1 {[%clk 0:02:15.7]} 18... Ne6 {[%clk 0:01:56.8]} 19. Nh5
{[%clk 0:02:11.1]} 19... Ng5 {[%clk 0:01:44.4]} 20. Ka1 {[%clk 0:01:59]} 20...
Qd6 {[%clk 0:01:14.9]} 21. c4 {[%clk 0:01:45]} 21... bxc4 {[%clk 0:01:10]} 22.
Bxc4 {[%clk 0:01:45.9]} 22... Be4 {[%clk 0:01:05.2]} 23. Qa4 {[%clk 0:01:25.8]}
23... g6 {[%clk 0:00:58.2]} 24. f4 {[%clk 0:00:58]} 24... Nf3 {[%clk 0:00:44.7]}
25. Rf1 {[%clk 0:00:49.1]} 25... gxh5 {[%clk 0:00:43.4]} 26. gxh5 {[%clk
0:00:50]} 26... Rab8 {[%clk 0:00:31.9]} 27. Be2 {[%clk 0:00:47.2]} 27... Rb4
{[%clk 0:00:17]} 28. Qa3 {[%clk 0:00:47.5]} 28... Nxd4 {[%clk 0:00:15.9]} 29.
Bxd4 {[%clk 0:00:31.6]} 29... Qxd4 {[%clk 0:00:16.8]} 30. Rfd1 {[%clk
0:00:29.4]} 30... Qb6 {[%clk 0:00:11.1]} 31. Bc4 {[%clk 0:00:28.8]} 31... Bg3
{[%clk 0:00:08.6]} 32. Rd7 {[%clk 0:00:26.2]} 32... Bd5 {[%clk 0:00:08.4]} 33.
Bxd5 {[%clk 0:00:17.4]} 33... cxd5 {[%clk 0:00:09.3]} 34. Qd3 {[%clk 0:00:10.2]}
34... Qe3 {[%clk 0:00:08.6]} 35. Qd1 {[%clk 0:00:08]} 35... Rd4 {[%clk
0:00:04.7]} 36. Qg4+ {[%clk 0:00:07.5]} 36... Kf8 {[%clk 0:00:04]} 37. h6 {[%clk
0:00:06.9]} 37... Qxc1# {[%clk 0:00:04]} 0-1

[Event "*** Titled Tuesday Blitz"]
[Site "Chess.com"]
[Date "2021.04.06"]
[Round "1"]
[White "louis198"]
[Black "monikarozman"]
[Result "1-0"]
[WhiteElo "2539"]
[BlackElo "2207"]
[TimeControl "180+1"]
[EndTime "10:07:23 PDT"]
[Termination "louis198 won on time"]

1. d4 {[%clk 0:03:00.9]} 1... Nf6 {[%clk 0:02:58.5]} 2. c4 {[%clk 0:02:59.4]}
2... e6 {[%clk 0:02:55.2]} 3. Nc3 {[%clk 0:02:58.2]} 3... Bb4 {[%clk 0:02:50.4]}
4. Qb3 {[%clk 0:02:56.9]} 4... c5 {[%clk 0:02:42.7]} 5. e3 {[%clk 0:02:55.5]}
5... O-O {[%clk 0:02:40.1]} 6. Bd3 {[%clk 0:02:51.9]} 6... Nc6 {[%clk
0:02:27.9]} 7. Ne2 {[%clk 0:02:50.7]} 7... d5 {[%clk 0:02:14.3]} 8. cxd5 {[%clk
0:02:48.3]} 8... exd5 {[%clk 0:02:10]} 9. dxc5 {[%clk 0:02:47.6]} 9... Bxc5
{[%clk 0:02:07.7]} 10. O-O {[%clk 0:02:46.6]} 10... b6 {[%clk 0:01:46.4]} 11. a3
{[%clk 0:02:24.3]} 11... Bb7 {[%clk 0:01:40.7]} 12. Rd1 {[%clk 0:02:21.8]} 12...
Rc8 {[%clk 0:01:38.5]} 13. Bd2 {[%clk 0:02:20.3]} 13... Bd6 {[%clk 0:01:34.8]}
14. Nb5 {[%clk 0:02:16.9]} 14... Bb8 {[%clk 0:01:33.4]} 15. Nbd4 {[%clk
0:02:16.5]} 15... Ne5 {[%clk 0:01:26.8]} 16. Bf5 {[%clk 0:02:15.7]} 16... Neg4
{[%clk 0:01:10.9]} 17. Ng3 {[%clk 0:02:11]} 17... Rc4 {[%clk 0:01:04.2]} 18. Bb4
{[%clk 0:02:08.5]} 18... Re8 {[%clk 0:01:03.2]} 19. Rac1 {[%clk 0:01:58.5]}
19... a5 {[%clk 0:00:38.3]} 20. Be1 {[%clk 0:01:55.3]} 20... Rxc1 {[%clk
0:00:34.7]} 21. Rxc1 {[%clk 0:01:54.3]} 21... Qd6 {[%clk 0:00:34.5]} 22. Nb5
{[%clk 0:01:33.3]} 22... Qe5 {[%clk 0:00:33.8]} 23. Bc3 {[%clk 0:01:32.2]} 23...
Qe7 {[%clk 0:00:32.5]} 24. Bd4 {[%clk 0:01:31.9]} 24... h5 {[%clk 0:00:31.1]}
25. Bxb6 {[%clk 0:01:24.3]} 25... h4 {[%clk 0:00:30.3]} 26. Nf1 {[%clk
0:01:24.5]} 26... h3 {[%clk 0:00:29.9]} 27. Bc7 {[%clk 0:01:19.2]} 27... hxg2
{[%clk 0:00:25.7]} 28. Ng3 {[%clk 0:01:01.4]} 28... Bxc7 {[%clk 0:00:18]} 29.
Rxc7 {[%clk 0:01:00.4]} 29... Qe5 {[%clk 0:00:17.6]} 30. Rxb7 {[%clk 0:01:00.5]}
30... Nh5 {[%clk 0:00:15.5]} 31. Nd4 {[%clk 0:00:54.6]} 31... Nxg3 {[%clk
0:00:13.9]} 32. hxg3 {[%clk 0:00:53]} 32... Nh6 {[%clk 0:00:10.7]} 33. Bh3
{[%clk 0:00:50.6]} 33... Qe4 {[%clk 0:00:06.1]} 34. Qc2 {[%clk 0:00:45.1]} 34...
Qe5 {[%clk 0:00:02.9]} 35. Bxg2 {[%clk 0:00:42.8]} 35... Ng4 {[%clk 0:00:03]}
36. Qc7 {[%clk 0:00:40.7]} 36... Qh5 {[%clk 0:00:02.7]} 37. Nf3 {[%clk
0:00:29.6]} 37... Rf8 {[%clk 0:00:02.6]} 38. Qf4 {[%clk 0:00:28.6]} 38... Nf6
{[%clk 0:00:02]} 39. Qg5 {[%clk 0:00:26.2]} 39... Qh7 {[%clk 0:00:01.4]} 40. Nd4
{[%clk 0:00:22.7]} 1-0

[Event "*** Titled Tuesday Blitz"]
[Site "Chess.com"]
[Date "2021.04.06"]
[Round "1"]
[White "Zmof"]
[Black "Yurovskykh_Oleksandr"]
[Result "0-1"]
[WhiteElo "2202"]
[BlackElo "2532"]
[TimeControl "180+1"]
[EndTime "10:07:23 PDT"]
[Termination "Yurovskykh_Oleksandr won by resignation"]

1. e4 {[%clk 0:03:00.9]} 1... d5 {[%clk 0:02:58.8]} 2. exd5 {[%clk 0:03:00.1]}
2... Qxd5 {[%clk 0:02:57.7]} 3. Nc3 {[%clk 0:03:00.2]} 3... Qd8 {[%clk
0:02:57.4]} 4. d4 {[%clk 0:02:59.4]} 4... Nf6 {[%clk 0:02:57.4]} 5. Nf3 {[%clk
0:02:59.1]} 5... Bg4 {[%clk 0:02:56]} 6. Be2 {[%clk 0:02:58.2]} 6... e6 {[%clk
0:02:55.2]} 7. O-O {[%clk 0:02:57.2]} 7... c6 {[%clk 0:02:55.4]} 8. Bg5 {[%clk
0:02:52.5]} 8... Be7 {[%clk 0:02:46.1]} 9. Qd2 {[%clk 0:02:50.3]} 9... Nbd7
{[%clk 0:02:45]} 10. Rad1 {[%clk 0:02:48.5]} 10... O-O {[%clk 0:02:44.4]} 11. h3
{[%clk 0:02:47.9]} 11... Bxf3 {[%clk 0:02:44.1]} 12. Bxf3 {[%clk 0:02:47.8]}
12... Nd5 {[%clk 0:02:44.1]} 13. Bxe7 {[%clk 0:02:45.8]} 13... Qxe7 {[%clk
0:02:45]} 14. Nxd5 {[%clk 0:02:44.2]} 14... cxd5 {[%clk 0:02:39.6]} 15. Rfe1
{[%clk 0:02:44.1]} 15... Nb6 {[%clk 0:02:37.6]} 16. c3 {[%clk 0:02:37.2]} 16...
Qc7 {[%clk 0:02:34.3]} 17. Be2 {[%clk 0:02:35]} 17... Rfc8 {[%clk 0:02:32.9]}
18. Bd3 {[%clk 0:02:31.1]} 18... g6 {[%clk 0:02:32.8]} 19. Qh6 {[%clk 0:02:29]}
19... Nc4 {[%clk 0:02:29.5]} 20. Re2 {[%clk 0:02:28.3]} 20... Nd6 {[%clk
0:02:29.1]} 21. h4 {[%clk 0:02:26]} 21... Qd8 {[%clk 0:02:26.9]} 22. h5 {[%clk
0:02:25.6]} 22... Qf8 {[%clk 0:02:27.1]} 23. Qxf8+ {[%clk 0:02:24.9]} 23... Kxf8
{[%clk 0:02:26.3]} 24. g3 {[%clk 0:02:25.1]} 24... b5 {[%clk 0:02:22.8]} 25. Kg2
{[%clk 0:02:15.6]} 25... Rab8 {[%clk 0:02:20.3]} 26. Rh1 {[%clk 0:02:14.6]}
26... Kg7 {[%clk 0:02:20.4]} 27. h6+ {[%clk 0:02:09.2]} 27... Kf6 {[%clk
0:02:12.7]} 28. f4 {[%clk 0:02:09]} 28... b4 {[%clk 0:02:10.4]} 29. Rc1 {[%clk
0:02:07.5]} 29... Rc6 {[%clk 0:02:00.5]} 30. Kf3 {[%clk 0:02:06.2]} 30... Rbc8
{[%clk 0:01:56.9]} 31. Rec2 {[%clk 0:02:05.7]} 31... bxc3 {[%clk 0:01:54.3]} 32.
Rxc3 {[%clk 0:02:02.2]} 32... Rxc3 {[%clk 0:01:54.2]} 33. Rxc3 {[%clk
0:02:02.9]} 33... Rb8 {[%clk 0:01:54.2]} 34. b3 {[%clk 0:01:51]} 34... Rb7
{[%clk 0:01:52.5]} 35. Rc6 {[%clk 0:01:49]} 35... Nf5 {[%clk 0:01:51.4]} 36.
Bxf5 {[%clk 0:01:47.4]} 36... gxf5 {[%clk 0:01:52.3]} 37. g4 {[%clk 0:01:27.7]}
37... fxg4+ {[%clk 0:01:49.6]} 38. Kxg4 {[%clk 0:01:27.6]} 38... Rb4 {[%clk
0:01:32.5]} 39. Ra6 {[%clk 0:01:24.1]} 39... Rxd4 {[%clk 0:01:31.2]} 40. Rxa7
{[%clk 0:01:24.6]} 40... e5 {[%clk 0:01:24.7]} 41. Ra6+ {[%clk 0:01:23.8]} 41...
Ke7 {[%clk 0:01:24.4]} 42. Kf5 {[%clk 0:01:16.7]} 42... e4 {[%clk 0:01:24]} 43.
Ke5 {[%clk 0:01:14]} 43... Rd2 {[%clk 0:01:18.2]} 44. Ra7+ {[%clk 0:01:13.3]}
44... Kd8 {[%clk 0:01:17.9]} 45. Kd6 {[%clk 0:01:08.7]} 45... Kc8 {[%clk
0:01:15.3]} 46. Rxf7 {[%clk 0:01:06.4]} 46... e3 {[%clk 0:01:14.8]} 47. Rxh7
{[%clk 0:01:06.5]} 47... d4 {[%clk 0:01:07.8]} 48. Rc7+ {[%clk 0:01:03.4]} 48...
Kb8 {[%clk 0:01:06.5]} 49. h7 {[%clk 0:01:01.4]} 49... Rh2 {[%clk 0:01:06.8]}
50. Rg7 {[%clk 0:01:01.5]} 50... e2 {[%clk 0:01:04.9]} 51. Re7 {[%clk
0:01:00.4]} 51... d3 {[%clk 0:01:04.8]} 52. Kc6 {[%clk 0:00:53.2]} 52... d2
{[%clk 0:00:48.7]} 53. Rxe2 {[%clk 0:00:40.3]} 53... Rh6+ {[%clk 0:00:47.7]} 54.
Kb5 {[%clk 0:00:29.1]} 54... d1=Q {[%clk 0:00:45.1]} 55. Re8+ {[%clk 0:00:28.8]}
55... Kb7 {[%clk 0:00:40.7]} 56. h8=Q {[%clk 0:00:27.1]} 56... Rxh8 {[%clk
0:00:40.9]} 57. Rxh8 {[%clk 0:00:26.9]} 57... Qd5+ {[%clk 0:00:40.2]} 0-1

[Event "*** Titled Tuesday Blitz"]
[Site "Chess.com"]
[Date "2021.04.06"]
[Round "1"]
[White "Cuajada_Zero"]
[Black "Joshukid"]
[Result "1-0"]
[WhiteElo "2308"]
[BlackElo "2584"]
[TimeControl "180+1"]
[EndTime "10:07:24 PDT"]
[Termination "Cuajada_Zero won by resignation"]

1. d4 {[%clk 0:02:58.7]} 1... Nf6 {[%clk 0:02:55.6]} 2. Bg5 {[%clk 0:02:57.6]}
2... g6 {[%clk 0:02:52.5]} 3. Bxf6 {[%clk 0:02:56.5]} 3... exf6 {[%clk
0:02:52.7]} 4. c4 {[%clk 0:02:56.2]} 4... Bg7 {[%clk 0:02:53.1]} 5. Nc3 {[%clk
0:02:55.3]} 5... O-O {[%clk 0:02:50.8]} 6. g3 {[%clk 0:02:54.7]} 6... f5 {[%clk
0:02:48.8]} 7. Bg2 {[%clk 0:02:54.4]} 7... d6 {[%clk 0:02:48.8]} 8. e3 {[%clk
0:02:54.3]} 8... c6 {[%clk 0:02:38.8]} 9. Nge2 {[%clk 0:02:51.4]} 9... Na6
{[%clk 0:02:37.9]} 10. O-O {[%clk 0:02:50.5]} 10... Nc7 {[%clk 0:02:38.2]} 11.
Qd3 {[%clk 0:02:49.1]} 11... a5 {[%clk 0:02:34.8]} 12. b3 {[%clk 0:02:44.9]}
12... Re8 {[%clk 0:02:34]} 13. a3 {[%clk 0:02:43.7]} 13... h5 {[%clk 0:02:33.6]}
14. b4 {[%clk 0:02:38.7]} 14... Be6 {[%clk 0:02:31.1]} 15. b5 {[%clk 0:02:16.5]}
15... Bd7 {[%clk 0:01:42.9]} 16. bxc6 {[%clk 0:02:03.1]} 16... Bxc6 {[%clk
0:01:38.6]} 17. d5 {[%clk 0:02:02.8]} 17... Bd7 {[%clk 0:01:37.3]} 18. Rab1
{[%clk 0:02:01.9]} 18... Na6 {[%clk 0:01:35.9]} 19. Nb5 {[%clk 0:01:40.9]} 19...
Nc5 {[%clk 0:01:33.3]} 20. Qc2 {[%clk 0:01:36.3]} 20... Rc8 {[%clk 0:01:08.4]}
21. Nec3 {[%clk 0:01:19.4]} 21... Qe7 {[%clk 0:00:51.4]} 22. Na4 {[%clk
0:01:08.6]} 22... Nxa4 {[%clk 0:00:35.4]} 23. Qxa4 {[%clk 0:01:07.8]} 23... b6
{[%clk 0:00:35.5]} 24. Qb3 {[%clk 0:00:56.9]} 24... Rc5 {[%clk 0:00:33.3]} 25.
Nd4 {[%clk 0:00:47.2]} 25... Rb8 {[%clk 0:00:32.4]} 26. Nc6 {[%clk 0:00:41.2]}
26... Bxc6 {[%clk 0:00:31.1]} 27. dxc6 {[%clk 0:00:42.1]} 27... h4 {[%clk
0:00:25.3]} 28. Rfd1 {[%clk 0:00:39.8]} 28... hxg3 {[%clk 0:00:24.9]} 29. hxg3
{[%clk 0:00:39.1]} 29... g5 {[%clk 0:00:25.5]} 30. Qd3 {[%clk 0:00:38.6]} 30...
Be5 {[%clk 0:00:20.2]} 31. f4 {[%clk 0:00:37.5]} 31... gxf4 {[%clk 0:00:19.1]}
32. exf4 {[%clk 0:00:36.5]} 32... Bf6 {[%clk 0:00:16.1]} 33. Qxd6 {[%clk
0:00:23.5]} 33... Qxd6 {[%clk 0:00:13.3]} 34. Rxd6 {[%clk 0:00:24.4]} 34... Kg7
{[%clk 0:00:13.9]} 35. Bd5 {[%clk 0:00:18.8]} 35... Re8 {[%clk 0:00:08.9]} 36.
Rxb6 {[%clk 0:00:14.2]} 36... Bd4+ {[%clk 0:00:07]} 37. Kg2 {[%clk 0:00:13.8]}
37... Rxd5 {[%clk 0:00:07.6]} 38. cxd5 {[%clk 0:00:13]} 38... Bxb6 {[%clk
0:00:08.1]} 39. Rd7 {[%clk 0:00:13.1]} 39... Rd8 {[%clk 0:00:07.3]} 40. Rxd8
{[%clk 0:00:11.5]} 40... Bxd8 {[%clk 0:00:05.7]} 41. d6 {[%clk 0:00:12.4]} 1-0